fUST/lending_fUST_20250527
["ID","MTS","AMOUNT","RATE_DAILY","PERIOD"]
[362464137,1748316636364,-540.45,0.00019943,2]
[362464138,1748316636373,-430.0,0.00019943,2]
[362464139,1748316636382,-443.84,0.00019943,2]
[362464140,1748316636392,-430.0,0.00019944,2]
[362464141,1748316636404,-430.0,0.00019944,2]
[362464142,1748316636415,-430.0,0.00019944,2]
[362464143,1748316636424,-430.0,0.00019944,2]
[362464144,1748316636433,-430.0,0.00019944,2]
[362464145,1748316636442,-430.0,0.00019944,2]
[362464146,1748316636451,-430.0,0.00019944,2]
[362464147,1748316636461,-430.0,0.00019944,2]
[362464148,1748316636470,-526.94,0.00019944,2]
[362464149,1748316636479,-430.0,0.00019945,2]
[362464150,1748316636488,-430.0,0.00019945,2]
[362464151,1748316636498,-430.0,0.00019945,2]
[362464152,1748316636507,-442.04760234,0.00019945,2]
[362464153,1748316636517,-430.0,0.00019945,2]
[362464154,1748316636527,-471.65834206,0.00019945,2]
[362464155,1748316636536,-495.41051851,0.00019945,2]
[362464156,1748316636545,-430.0,0.00019945,2]
[362464157,1748316636555,-430.0,0.00020213,2]
[362464158,1748316636564,-672.78,0.00020213,2]
[362464159,1748316636573,-743.35,0.00020214,2]
[362464160,1748316636583,-430.0,0.00020214,2]
[362464161,1748316636592,-951.72,0.00020214,2]
[362464162,1748316636604,-441.08,0.00020214,2]
[362464163,1748316636613,-430.0,0.00020214,2]
[362464164,1748316636622,-430.0,0.00020214,2]
[362464165,1748316636631,-430.0,0.00020214,2]
[362464166,1748316636640,-430.0,0.00020214,2]
[362464167,1748316636649,-430.0,0.00020214,2]
[362464168,1748316636658,-173.3848675,0.00020217,2]
[362464169,1748316636667,-532.64261384,0.00020217,2]
[362464170,1748316636677,-397.58,0.00020217,2]
[362464171,1748316636686,-430.0,0.00020217,2]
[362464172,1748316636695,-430.0,0.00020217,2]
[362464173,1748316636704,-540.45,0.00020217,2]
[362464174,1748316636713,-430.0,0.00020218,2]
[362464175,1748316636722,-430.0,0.00020218,2]
[362464176,1748316636734,-207.6729744,0.00020218,2]
[362464177,1748316636743,-430.0,0.00020218,2]
[362464178,1748316636753,-430.0,0.00020218,2]
[362464179,1748316636763,-430.0,0.00020218,2]
[362464180,1748316636773,-455.54,0.00020218,2]
[362464181,1748316636783,-526.94,0.00020218,2]
[362464182,1748316636793,-430.0,0.00020219,2]
[362464183,1748316636805,-434.7,0.00020219,2]
[362464184,1748316636815,-430.0,0.00020219,2]
[362464185,1748316636824,-317.52501624,0.00020297,2]
[362464186,1748316636834,-430.0,0.00020487,2]
[362464187,1748316636843,-672.78,0.00020487,2]
[362464188,1748316636853,-743.35,0.00020488,2]
[362464189,1748316636862,-430.0,0.00020488,2]
[362464190,1748316636871,-951.72,0.00020488,2]
[362464191,1748316636881,-441.08,0.00020488,2]
[362464192,1748316636890,-430.0,0.00020488,2]
[362464193,1748316636899,-430.0,0.00020488,2]
[362464194,1748316636908,-300.67,0.00020488,2]
[362464195,1748316636917,-337.98,0.00020488,2]
[362464196,1748316636927,-526.68,0.00020488,2]
[362464197,1748316636936,-430.0,0.00020491,2]
[362464198,1748316636945,-430.0,0.00020491,2]
[362464199,1748316636954,-540.45,0.00020491,2]
[362464200,1748316636963,-430.0,0.00020492,2]
[362464201,1748316636973,-430.0,0.00020492,2]
[362464202,1748316636983,-430.0,0.00020492,2]
[362464203,1748316636992,-430.0,0.00020492,2]
[362464204,1748316637001,-430.0,0.00020492,2]
[362464205,1748316637010,-526.94,0.00020492,2]
[362464206,1748316637020,-430.0,0.00020493,2]
[362464207,1748316637029,-559.98235338,0.00020493,2]
[362464208,1748316637038,-423.16111059,0.00020564,2]
[362464209,1748316637047,-231.11871391,0.00020653,2]
[362464210,1748316637056,-449.62,0.00020761,2]
[362464211,1748316637066,-672.78,0.00020761,2]
[362464212,1748316637075,-743.35,0.00020762,2]
[362464213,1748316637085,-430.0,0.00020762,2]
[362464214,1748316637094,-951.72,0.00020762,2]
[362464215,1748316637104,-441.08,0.00020762,2]
[362464216,1748316637113,-430.0,0.00020762,2]
[362464217,1748316637123,-430.0,0.00020762,2]
[362464218,1748316637132,-430.0,0.00020765,2]
[362464219,1748316637144,-430.0,0.00020765,2]
[362464220,1748316637153,-540.45,0.00020765,2]
[362464221,1748316637163,-430.0,0.00020766,2]
[362464222,1748316637172,-430.0,0.00020766,2]
[362464223,1748316637182,-523.96,0.00020766,2]
[362464224,1748316637191,-430.0,0.00020766,2]
[362464225,1748316637200,-430.0,0.00020766,2]
[362464226,1748316637210,-526.94,0.00020766,2]
[362464227,1748316637219,-430.0,0.00020767,2]
[362464228,1748316637229,-672.78,0.00021035,2]
[362464229,1748316637239,-743.35,0.00021036,2]
[362464230,1748316637248,-430.0,0.00021036,2]
[362464231,1748316637258,-951.72,0.00021036,2]
[362464232,1748316637267,-441.08,0.00021036,2]
[362464233,1748316637276,-430.0,0.00021036,2]
[362464234,1748316637286,-430.0,0.00021036,2]
[362464235,1748316637295,-579.56,0.00021039,2]
[362464236,1748316637304,-430.0,0.00021039,2]
[362464237,1748316637314,-540.45,0.00021039,2]
[362464238,1748316637324,-430.0,0.0002104,2]
[362464239,1748316637333,-430.0,0.0002104,2]
[362464240,1748316637342,-273.22,0.0002104,2]
[362464241,1748316637353,-216.14,0.0002104,2]
[362464242,1748316637362,-526.94,0.0002104,2]
[362464243,1748316637371,-430.0,0.00021041,2]
[362464244,1748316637380,-155.326,0.00021042,2]
[362464245,1748316637389,-300.0,0.00021128,2]
[362464246,1748316637399,-500.0,0.00021164,2]
[362464247,1748316637408,-672.78,0.00021309,2]
[362464248,1748316637417,-743.35,0.0002131,2]
[362464249,1748316637427,-430.0,0.0002131,2]
[362464250,1748316637436,-951.72,0.0002131,2]
[362464251,1748316637445,-441.08,0.0002131,2]
[362464252,1748316637455,-430.0,0.0002131,2]
[362464253,1748316637464,-430.0,0.0002131,2]
[362464254,1748316637473,-430.0,0.00021313,2]
[362464255,1748316637482,-540.45,0.00021313,2]
[362464256,1748316637492,-430.0,0.00021314,2]
[362464257,1748316637502,-430.0,0.00021314,2]
[362464258,1748316637511,-526.94,0.00021314,2]
[362464259,1748316637521,-430.0,0.00021315,2]
[362464260,1748316637530,-672.78,0.00021583,2]
[362464261,1748316637539,-743.35,0.00021584,2]
[362464262,1748316637549,-430.0,0.00021584,2]
[362464263,1748316637558,-951.72,0.00021584,2]
[362464264,1748316637567,-441.08,0.00021584,2]
[362464265,1748316637577,-430.0,0.00021584,2]
[362464266,1748316637586,-430.0,0.00021584,2]
[362464267,1748316637700,-430.0,0.00021587,2]
[362464268,1748316637711,-540.45,0.00021587,2]
[362464269,1748316637722,-430.0,0.00021588,2]
[362464270,1748316637734,-430.0,0.00021588,2]
[362464271,1748316637744,-526.94,0.00021588,2]
[362464272,1748316637754,-430.0,0.00021589,2]
[362464273,1748316637763,-231.11871391,0.00021736,2]
[362464274,1748316637774,-672.78,0.00021857,2]
[362464275,1748316637784,-743.35,0.00021858,2]
[362464276,1748316637793,-430.0,0.00021858,2]
[362464277,1748316637804,-951.72,0.00021858,2]
[362464278,1748316637813,-441.08,0.00021858,2]
[362464279,1748316637823,-430.0,0.00021858,2]
[362464280,1748316637832,-534.0042577,0.00021858,2]
[362464281,1748316637841,-458.0,0.00021861,2]
[362464282,1748316637851,-540.45,0.00021861,2]
[362464283,1748316637861,-430.0,0.00021862,2]
[362464284,1748316637871,-430.0,0.00021862,2]
[362464286,1748316637880,-526.94,0.00021862,2]
[362464288,1748316637890,-430.0,0.00021863,2]
[362464290,1748316637899,-211.0,0.00021918,3]
[362464292,1748316637909,-672.78,0.00022131,2]
[362464294,1748316637918,-743.35,0.00022132,2]
[362464296,1748316637928,-430.0,0.00022132,2]
[362464297,1748316637937,-951.72,0.00022132,2]
[362464298,1748316637947,-441.08,0.00022132,2]
[362464299,1748316637956,-430.0,0.00022132,2]
[362464300,1748316637966,-540.45,0.00022135,2]
[362464301,1748316637976,-430.0,0.00022136,2]
[362464302,1748316637986,-430.0,0.00022136,2]
[362464303,1748316637995,-526.94,0.00022136,2]
[362464304,1748316638005,-430.0,0.00022137,2]
[362464305,1748316638015,-250.43346375,0.00022189,2]
[362464306,1748316638024,-672.78,0.00022405,2]
[362464307,1748316638034,-743.35,0.00022406,2]
[362464308,1748316638045,-430.0,0.00022406,2]
[362464309,1748316638055,-951.72,0.00022406,2]
[362464310,1748316638064,-441.08,0.00022406,2]
[362464311,1748316638074,-430.0,0.00022406,2]
[362464312,1748316638084,-540.45,0.00022409,2]
[362464313,1748316638094,-447.05240231,0.0002241,2]
[362464314,1748316638103,-430.0,0.0002241,2]
[362464315,1748316638113,-526.94,0.0002241,2]
[362464316,1748316638123,-430.0,0.00022411,2]
[362464317,1748316638132,-207.4,0.00022567,2]
[362464318,1748316638142,-550.46394035,0.00022679,2]
[362464363,1748316646515,-319.23606269,0.0001939,2]
[362464364,1748316646527,-500.0,0.0001939,2]
[362464365,1748316646537,-500.0,0.0001939,2]
[362464366,1748316646547,-500.0,0.0001939,2]
[362464367,1748316646556,-500.0,0.0001939,2]
[362464368,1748316646566,-500.0,0.0001939,2]
[362464369,1748316646578,-500.0,0.0001939,2]
[362464371,1748316646588,-500.0,0.0001939,2]
[362464372,1748316646598,-500.0,0.0001939,2]
[362464374,1748316646609,-500.0,0.0001939,2]
[362464375,1748316646620,-500.0,0.0001939,2]
[362464376,1748316646631,-500.0,0.0001939,2]
[362464377,1748316646641,-500.0,0.0001939,2]
[362464378,1748316646652,-500.0,0.0001939,2]
[362464379,1748316646664,-500.0,0.0001939,2]
[362464380,1748316646675,-500.0,0.0001939,2]
[362464381,1748316646684,-500.0,0.0001939,2]
[362464382,1748316646696,-500.0,0.0001939,2]
[362464383,1748316646707,-500.0,0.0001939,2]
[362464384,1748316646718,-500.0,0.0001939,2]
[362464385,1748316646728,-500.0,0.0001939,2]
[362464386,1748316646740,-430.0,0.00019391,2]
[362464387,1748316646751,-430.0,0.00019397,2]
[362464388,1748316646763,-430.0,0.00019665,2]
[362464389,1748316646774,-430.0,0.00019939,2]
[362464390,1748316646786,-430.0,0.00020213,2]
[362464391,1748316646796,-430.0,0.00020487,2]
[362464392,1748316646807,-160.0,0.00020558,2]
[362464393,1748316646817,-430.0,0.00020761,2]
[362464394,1748316646828,-225.7261064,0.000209,4]
[362464395,1748316646837,-430.0,0.00021035,2]
[362464396,1748316646847,-430.0,0.00021309,2]
[362464397,1748316646856,-430.0,0.00021583,2]
[362464398,1748316646866,-430.0,0.00021857,2]
[362464399,1748316646876,-430.0,0.00022131,2]
[362464400,1748316646886,-225.72610638,0.00022233,6]
[362464401,1748316646896,-430.0,0.00022405,2]
[362464402,1748316646906,-122.31605965,0.00022679,2]
[362464403,1748316646917,-180.03391754,0.00022679,2]
[362464404,1748316646930,-249.96608246,0.00022679,2]
[362464405,1748316646940,-430.0,0.0002268,2]
[362464406,1748316646949,-951.72,0.0002268,2]
[362464407,1748316646960,-441.08,0.0002268,2]
[362464408,1748316646969,-430.0,0.0002268,2]
[362464409,1748316646982,-540.45,0.00022683,2]
[362464410,1748316646992,-430.0,0.00022684,2]
[362464411,1748316647002,-526.94,0.00022684,2]
[362464412,1748316647011,-430.0,0.00022685,2]
[362464413,1748316647021,-160.334566,0.0002281,2]
[362464414,1748316647036,-231.11871391,0.00022818,2]
[362464415,1748316647045,-672.78,0.00022953,2]
[362464416,1748316647055,-430.0,0.00022953,2]
[362464417,1748316647064,-430.0,0.00022954,2]
[362464418,1748316647074,-951.72,0.00022954,2]
[362464419,1748316647084,-441.08,0.00022954,2]
[362464420,1748316647093,-430.0,0.00022954,2]
[362464421,1748316647103,-540.45,0.00022957,2]
[362464422,1748316647113,-430.0,0.00022958,2]
[362464423,1748316647122,-526.94,0.00022958,2]
[362464424,1748316647132,-505.47408195,0.00022959,2]
[362464425,1748316647141,-500.0,0.00023058,2]
[362464426,1748316647150,-500.0,0.00023058,2]
[362464427,1748316647160,-500.0,0.00023058,2]
[362464428,1748316647170,-500.0,0.00023058,2]
[362464429,1748316647179,-600.0,0.00023058,2]
[362464430,1748316647188,-500.0,0.00023058,2]
[362464431,1748316647199,-672.78,0.00023227,2]
[362464432,1748316647209,-430.0,0.00023227,2]
[362464433,1748316647220,-430.0,0.00023228,2]
[362464434,1748316647231,-951.72,0.00023228,2]
[362464435,1748316647241,-441.08,0.00023228,2]
[362464436,1748316647251,-430.0,0.00023228,2]
[362464437,1748316647261,-540.45,0.00023231,2]
[362464438,1748316647271,-430.0,0.00023232,2]
[362464439,1748316647286,-526.94,0.00023232,2]
[362464440,1748316647295,-500.0,0.00023356,2]
[362464441,1748316647305,-672.78,0.00023501,2]
[362464442,1748316647315,-430.0,0.00023501,2]
[362464443,1748316647326,-430.0,0.00023502,2]
[362464444,1748316647337,-951.72,0.00023502,2]
[362464445,1748316647350,-441.08,0.00023502,2]
[362464446,1748316647361,-430.0,0.00023502,2]
[362464447,1748316647371,-540.45,0.00023505,2]
[362464448,1748316647381,-169.24853149,0.00023506,2]
[362464449,1748316647393,-260.75146851,0.00023506,2]
[362464450,1748316647403,-526.94,0.00023506,2]
[362464451,1748316647414,-564.034045,0.0002352,3]
[362464452,1748316647424,-225.72610638,0.00023567,9]
[362464453,1748316647433,-250.56887883,0.0002357,2]
[362464454,1748316647444,-1000.0,0.00023606,2]
[362464455,1748316647455,-1000.0,0.00023606,2]
[362464456,1748316647465,-1000.0,0.00023606,2]
[362464457,1748316647475,-1000.0,0.00023606,2]
[362464458,1748316647485,-1200.0,0.00023606,2]
[362464459,1748316647495,-1000.0,0.00023606,2]
[362464460,1748316647504,-672.78,0.00023775,2]
[362464461,1748316647514,-430.0,0.00023775,2]
[362464462,1748316647524,-401.14442592,0.00023776,2]
[362464463,1748316647535,-951.72,0.00023776,2]
[362464464,1748316647544,-441.08,0.00023776,2]
[362464465,1748316647554,-430.0,0.00023776,2]
[362464466,1748316647565,-540.45,0.00023779,2]
[362464467,1748316647575,-430.0,0.0002378,2]
[362464468,1748316647586,-526.94,0.0002378,2]
[362464469,1748316647595,-154.16103376,0.0002387,2]
[362464470,1748316647607,-231.11871391,0.000239,2]
[362464471,1748316647616,-1092.31872751,0.000239,2]
[362464472,1748316647627,-325.30330367,0.000239,2]
[362464473,1748316647636,-215.0738,0.00023936,2]
[362464474,1748316647646,-160.37391087,0.00023999,2]
[362464475,1748316647658,-160.0,0.00023999,2]
[362464476,1748316647667,-1657.00163414,0.00024,3]
[362464477,1748316647677,-45377.57795236,0.00024,4]
[362464478,1748316647686,-50000.0,0.00024,4]
[362464479,1748316647696,-50000.0,0.00024,4]
[362464480,1748316647705,-50000.0,0.00024,4]
[362464481,1748316647714,-50000.0,0.00024,4]
[362464482,1748316647724,-50000.0,0.00024,4]
[362464483,1748316647736,-30939.43747535,0.00024,4]
[362464485,1748317542129,-159.0,0.00016438,3]
[362464486,1748317542151,-212.67857994,0.00018041,2]
[362464487,1748317542172,-261.2638673,0.00018392,2]
[362464488,1748317542194,-180.91974706,0.00018807,2]
[362464489,1748317542216,-300.0,0.00019387,2]
[362464490,1748317542239,-1200.0,0.00019387,2]
[362464491,1748317542261,-300.0,0.00019387,2]
[362464492,1748317542283,-500.0,0.00019388,2]
[362464493,1748317542305,-500.0,0.00019388,2]
[362464494,1748317542328,-287.82198691,0.00019388,2]
[362464495,1748317550088,-142.59226588,0.00019388,2]
[362464496,1748317550113,-207.50855699,0.00019388,2]
[362464498,1748317625102,-177.04371114,0.00019387,2]
[362464499,1748317626090,-122.95628886,0.00019387,2]
[362464500,1748317626113,-307.38477701,0.00019388,2]
[362464501,1748317626136,-61.15544,0.00019388,2]
[362464502,1748317626168,-438.84456,0.00019388,2]
[362464503,1748317626190,-431.92360627,0.00019388,2]
[362464504,1748317626211,-430.0,0.00019388,2]
[362464505,1748317626234,-154.95220756,0.00019388,2]
[362464506,1748317647143,-282.60466678,0.00019388,2]
[362464507,1748317647168,-430.0,0.00019388,2]
[362464508,1748317647191,-405.51665021,0.00019388,2]
[362464509,1748317647214,-430.0,0.00019388,2]
[362464510,1748317647236,-430.0,0.00019388,2]
[362464511,1748317647260,-430.0,0.00019388,2]
[362464512,1748317647283,-407.59634751,0.00019388,2]
[362464513,1748317647305,-430.0,0.00019388,2]
[362464514,1748317647328,-432.64371377,0.00019388,2]
[362464515,1748317647350,-430.0,0.00019388,2]
[362464516,1748317647372,-408.0477553,0.00019388,2]
[362464517,1748317654083,-21.9522447,0.00019388,2]
[362464518,1748317654105,-430.0,0.00019388,2]
[362464519,1748317654127,-375.27253663,0.00019388,2]
[362464526,1748317748109,-4294.28093584,0.00018391,2]
[362464527,1748317753087,-2151.63765708,0.00018391,2]
[362464528,1748317765236,-168.02745418,0.00018391,2]
[362464529,1748317765259,-593.60894582,0.000189,2]
[362464530,1748317765286,-28.40422556,0.000189,2]
[362464531,1748317832521,-159.10262292,0.00019387,2]
[362464532,1748317832531,-407.66745858,0.00019387,2]
[362464533,1748317832540,-400.0,0.00019387,2]
[362464534,1748317832550,-510.83327767,0.00019387,2]
[362464535,1748317832559,-404.26502334,0.00019387,2]
[362464536,1748317832569,-430.0,0.00019387,2]
[362464537,1748317832578,-401.27672285,0.00019387,2]
[362464538,1748317832588,-432.82109002,0.00019387,2]
[362464539,1748317832598,-54.72746337,0.00019388,2]
[362464540,1748317832607,-410.72958565,0.00019388,2]
[362464541,1748317832617,-412.97171181,0.00019388,2]
[362464542,1748317832627,-417.91262611,0.00019388,2]
[362464543,1748317832636,-430.0,0.00019388,2]
[362464544,1748317832645,-1082.35612447,0.00019388,2]
[362464545,1748317832655,-421.72134209,0.00019388,2]
[362464546,1748317832664,-335.55418254,0.00019388,2]
[362464547,1748317832673,-432.81934731,0.00019388,2]
[362464548,1748317832683,-411.42655222,0.00019388,2]
[362464549,1748317832692,-454.02135073,0.00019388,2]
[362464550,1748317832702,-430.0,0.00019388,2]
[362464551,1748317832711,-430.0,0.00019388,2]
[362464552,1748317832721,-427.94629902,0.00019388,2]
[362464553,1748317832731,-438.12037596,0.00019388,2]
[362464554,1748317832740,-445.5103187,0.00019388,2]
[362464555,1748317832749,-424.52285312,0.00019388,2]
[362464556,1748317832758,-430.0,0.00019388,2]
[362464557,1748317832768,-461.71874126,0.00019388,2]
[362464558,1748317832777,-424.61403487,0.00019388,2]
[362464559,1748317832787,-293.72865998,0.00019388,2]
[362464560,1748317832797,-425.54293703,0.00019388,2]
[362464561,1748317832806,-405.21708973,0.00019388,2]
[362464562,1748317832815,-430.0,0.00019388,2]
[362464563,1748317832825,-430.0,0.00019388,2]
[362464564,1748317832834,-429.00204375,0.00019388,2]
[362464565,1748317832844,-430.0,0.00019388,2]
[362464566,1748317832853,-414.53241459,0.00019388,2]
[362464567,1748317832862,-412.02850224,0.00019388,2]
[362464568,1748317832871,-430.0,0.00019388,2]
[362464569,1748317832881,-430.0,0.00019388,2]
[362464570,1748317832890,-434.65979101,0.00019388,2]
[362464571,1748317832899,-430.0,0.00019388,2]
[362464572,1748317832909,-407.66455022,0.00019388,2]
[362464573,1748317832918,-452.96730173,0.00019388,2]
[362464574,1748317832927,-430.0,0.00019388,2]
[362464575,1748317832937,-441.9,0.00019388,2]
[362464576,1748317832946,-406.11582214,0.00019388,2]
[362464577,1748317832955,-1232.65,0.00019388,2]
[362464578,1748317832965,-425.28952636,0.00019388,2]
[362464579,1748317832974,-430.0,0.00019388,2]
[362464580,1748317832983,-402.7727925,0.00019388,2]
[362464581,1748317832993,-430.0,0.00019388,2]
[362464582,1748317833002,-422.797985,0.00019388,2]
[362464583,1748317833012,-405.99482912,0.00019388,2]
[362464584,1748317833021,-430.0,0.00019388,2]
[362464585,1748317833031,-430.0,0.00019388,2]
[362464586,1748317833048,-415.49804446,0.00019388,2]
[362464587,1748317833058,-430.0,0.00019388,2]
[362464588,1748317833068,-430.0,0.00019388,2]
[362464589,1748317833077,-430.0,0.00019388,2]
[362464590,1748317833091,-430.0,0.00019388,2]
[362464591,1748317833101,-442.15745603,0.00019388,2]
[362464592,1748317833111,-430.0,0.00019388,2]
[362464593,1748317833121,-430.0,0.00019388,2]
[362464594,1748317833131,-430.0,0.00019388,2]
[362464595,1748317833141,-430.0,0.00019388,2]
[362464596,1748317833151,-430.0,0.00019388,2]
[362464597,1748317833162,-448.78779347,0.00019388,2]
[362464598,1748317833173,-194.07166874,0.00019388,2]
[362464599,1748317833183,-443.8966261,0.00019388,2]
[362464600,1748317833193,-433.77,0.00019388,2]
[362464601,1748317833202,-430.0,0.00019388,2]
[362464602,1748317833211,-425.20653047,0.00019388,2]
[362464603,1748317833220,-406.72190665,0.00019388,2]
[362464604,1748317833230,-430.0,0.00019388,2]
[362464605,1748317833240,-566.84782549,0.00019388,2]
[362464606,1748317833250,-430.0,0.00019388,2]
[362464607,1748317833260,-414.64797292,0.00019388,2]
[362464608,1748317833270,-430.0,0.00019388,2]
[362464609,1748317833280,-430.0,0.00019388,2]
[362464610,1748317833290,-430.0,0.00019388,2]
[362464611,1748317833301,-430.0,0.00019388,2]
[362464612,1748317833311,-430.0,0.00019388,2]
[362464613,1748317833320,-430.0,0.00019388,2]
[362464614,1748317833330,-415.90116616,0.00019388,2]
[362464615,1748317833343,-14.09883384,0.00019388,2]
[362464616,1748317833353,-430.0,0.00019388,2]
[362464617,1748317833363,-426.32949498,0.00019388,2]
[362464618,1748317833373,-430.0,0.00019388,2]
[362464619,1748317833383,-430.0,0.00019388,2]
[362464620,1748317833393,-443.80950966,0.00019388,2]
[362464621,1748317833403,-430.0,0.00019388,2]
[362464622,1748317833413,-430.0,0.00019388,2]
[362464623,1748317833423,-430.0,0.00019388,2]
[362464624,1748317833433,-453.94659006,0.00019388,2]
[362464625,1748317833443,-430.0,0.00019388,2]
[362464626,1748317833453,-387.24845755,0.00019388,2]
[362464627,1748317833463,-430.0,0.00019388,2]
[362464628,1748317833473,-430.0,0.00019388,2]
[362464629,1748317833483,-290.63884412,0.00019388,2]
[362464630,1748317833492,-439.3611669,0.00019388,2]
[362464631,1748317833502,-430.0,0.00019388,2]
[362464632,1748317833512,-430.0,0.00019388,2]
[362464633,1748317833521,-405.40101732,0.00019388,2]
[362464634,1748317833531,-571.25,0.00019388,2]
[362464635,1748317833541,-430.0,0.00019388,2]
[362464636,1748317833550,-430.0,0.00019388,2]
[362464637,1748317833560,-693.34,0.00019388,2]
[362464638,1748317833570,-430.0,0.00019388,2]
[362464639,1748317833579,-849.46,0.00019388,2]
[362464640,1748317833588,-430.0,0.00019388,2]
[362464641,1748317833598,-430.0,0.00019388,2]
[362464642,1748317833607,-430.0,0.00019388,2]
[362464643,1748317833617,-401.85422467,0.00019389,2]
[362464644,1748317833626,-406.06565056,0.00019389,2]
[362464645,1748317833636,-408.69367168,0.00019389,2]
[362464646,1748317833645,-430.0,0.00019389,2]
[362464647,1748317833655,-430.0,0.00019389,2]
[362464648,1748317833665,-430.0,0.00019389,2]
[362464649,1748317833676,-430.0,0.00019389,2]
[362464650,1748317833686,-430.0,0.00019389,2]
[362464651,1748317833696,-415.23987964,0.00019389,2]
[362464652,1748317833705,-418.67094118,0.00019389,2]
[362464653,1748317833715,-430.0,0.00019389,2]
[362464654,1748317833725,-400.0,0.00019389,2]
[362464655,1748317833734,-430.0,0.00019389,2]
[362464656,1748317833745,-430.0,0.00019389,2]
[362464657,1748317833755,-430.0,0.00019389,2]
[362464658,1748317833764,-430.0,0.00019389,2]
[362464659,1748317833774,-430.0,0.00019389,2]
[362464660,1748317833783,-430.0,0.00019389,2]
[362464661,1748317833792,-430.0,0.00019389,2]
[362464662,1748317833802,-430.0,0.00019389,2]
[362464663,1748317833811,-423.41856525,0.00019389,2]
[362464664,1748317833822,-430.0,0.00019389,2]
[362464665,1748317833832,-430.0,0.00019389,2]
[362464666,1748317833841,-430.0,0.00019389,2]
[362464667,1748317833851,-430.0,0.00019389,2]
[362464668,1748317833860,-430.0,0.00019389,2]
[362464669,1748317833870,-430.0,0.00019389,2]
[362464670,1748317833880,-441.61083333,0.00019389,2]
[362464671,1748317833890,-430.0,0.00019389,2]
[362464672,1748317833899,-453.91646313,0.00019389,2]
[362464673,1748317833909,-430.0,0.00019389,2]
[362464674,1748317833919,-460.31966649,0.00019389,2]
[362464675,1748317833929,-430.0,0.00019389,2]
[362464676,1748317833938,-430.0,0.00019389,2]
[362464677,1748317833948,-430.0,0.00019389,2]
[362464678,1748317833957,-430.0,0.00019389,2]
[362464679,1748317833967,-430.0,0.00019389,2]
[362464680,1748317833977,-430.0,0.00019389,2]
[362464681,1748317833987,-430.0,0.00019389,2]
[362464682,1748317833997,-430.0,0.00019389,2]
[362464683,1748317834007,-430.0,0.00019389,2]
[362464684,1748317834017,-500.0,0.00019389,2]
[362464685,1748317834026,-500.0,0.00019389,2]
[362464686,1748317834037,-500.0,0.00019389,2]
[362464687,1748317834046,-500.0,0.00019389,2]
[362464688,1748317834055,-430.0,0.00019389,2]
[362464689,1748317834065,-430.0,0.00019389,2]
[362464690,1748317834074,-430.0,0.00019389,2]
[362464691,1748317834087,-430.0,0.00019389,2]
[362464692,1748317834096,-430.0,0.00019389,2]
[362464693,1748317834105,-430.0,0.00019389,2]
[362464694,1748317834115,-430.0,0.00019389,2]
[362464695,1748317834124,-449.17161289,0.00019389,2]
[362464696,1748317834134,-430.0,0.00019389,2]